bitfinex-derivatives/quotes_SOLF0:USTF0_20241120
["timestamp","ask_amount","ask_price","bid_price","bid_amount"]
[1732094748697,8.85063328,237.44,237.36,7.79263328]
[1732094749500,8.85063328,237.44,237.36,1.262]
[1732094750296,6.53063328,237.42,237.38,2.104]
[1732094750495,6.53063328,237.42,237.36,1.262]
[1732094750696,2.32,237.44,237.36,1.262]
[1732094752298,2.32,237.44,237.38,2.104]
[1732094752499,2.32,237.44,237.36,1.262]
[1732094753202,2.32,237.44,237.39,2.104]
[1732094755302,2.32,237.44,237.36,1.262]
[1732094755594,12.5360765,237.44,237.35,1.2054]
[1732094755798,12.5360765,237.44,237.28,5.84732395]
[1732094756002,12.5360765,237.44,237.31,1.2451]
[1732094756598,2.1036,237.43,237.35,2.1042]
[1732094757406,12.5360765,237.44,237.37,2.1041]
[1732094757996,2.1037,237.42,237.35,2.1043]
[1732094758201,10.2160765,237.41,237.31,1.2451]
[1732094758904,2.1038,237.42,237.31,1.2451]
[1732094759199,10.2160765,237.41,237.31,1.2451]
[1732094759402,2.104,237.4,237.31,3.3497]
[1732094759606,10.2160765,237.41,237.31,3.3497]
[1732094760400,2.104,237.39,237.32,2.1046]
[1732094760601,2.32,237.38,237.31,1.2451]
[1732094760801,2.32,237.38,237.21,46.77847611]
[1732094760802,10.2160765,237.35,237.19,23.38929581]
[1732094761107,10.2160765,237.32,237.22,1.2475]
[1732094761407,2.38,237.31,237.22,1.2475]
[1732094761601,2.38,237.31,237.25,2.1052]
[1732094761802,2.38,237.31,237.22,1.2475]
[1732094761999,2.38,237.31,237.25,2.1052]
[1732094762506,2.38,237.31,237.22,1.2475]
[1732094762707,2.38,237.31,237.27,2.105]
[1732094763205,10.2160765,237.32,237.27,2.105]
[1732094763404,2.38,237.31,237.22,1.2475]
[1732094763601,2.38,237.31,237.28,2.1049]
[1732094764002,10.2160765,237.38,237.23,10.2160765]
[1732094764206,2.38,237.37,237.26,10.2160765]
[1732094764507,2.38,237.36,237.22,1.2475]
[1732094764712,2.38,237.35,237.26,10.2160765]
[1732094765406,2.38,237.35,237.28,2.1049]
[1732094765606,2.38,237.35,237.26,10.2160765]
[1732094766115,2.38,237.35,237.31,2.1047]
[1732094766405,2.38,237.35,237.26,10.2160765]
[1732094766608,2.38,237.35,237.33,2.1045]
[1732094768511,42.91,237.57,237.37,2.1041]
[1732094768512,2.38,237.39,237.37,2.1041]
[1732094769203,2.38,237.4,237.37,2.1041]
[1732094769809,2.38,237.4,237.38,2.104]
[1732094773911,2.1034,237.46,237.34,1.2077]
[1732094774111,2.38,237.45,237.34,1.2077]
[1732094774510,2.38,237.47,237.42,2.1037]
[1732094774712,2.38,237.46,237.42,2.1037]
[1732094774909,2.38,237.46,237.36,1.2476]
[1732094775305,10.2160765,237.44,237.34,1.2077]
[1732094775506,10.2160765,237.41,237.34,1.2077]
[1732094775711,2.38,237.4,237.34,1.2077]
[1732094776515,2.38,237.4,237.3,1.187]
[1732094776814,2.104,237.39,237.32,2.1046]
[1732094777714,2.38,237.4,237.36,2.1042]
[1732094778013,10.2160765,237.44,237.3,1.187]
[1732094778212,2.38,237.43,237.37,2.1041]
[1732094778514,2.38,237.43,237.31,10.2160765]
[1732094778909,2.38,237.43,237.37,2.1041]
[1732094779110,2.38,237.43,237.3,1.187]
[1732094779310,2.38,237.43,237.34,2.1044]
[1732094779311,2.1038,237.42,237.34,2.1044]
[1732094779612,2.38,237.43,237.3,1.187]
[1732094779811,2.38,237.43,237.31,10.2160765]
[1732094781314,2.38,237.43,237.4,2.1039]
[1732094782317,2.38,237.43,237.41,2.1038]
[1732094782517,2.38,237.43,237.34,10.2160765]
[1732094782713,2.38,237.43,237.35,1.2255]
[1732094782916,10.2160765,237.5,237.35,1.2255]
[1732094783216,2.38,237.49,237.35,1.2255]
[1732094783609,4.4831,237.49,237.41,2.1037]
[1732094784117,4.4831,237.49,237.35,1.2255]
[1732094784316,4.4831,237.49,237.42,2.1037]
[1732094785316,4.4831,237.49,237.41,2.1038]
[1732094785615,4.4831,237.49,237.35,1.2255]
[1732094785812,2.38,237.49,237.35,1.2255]
[1732094786015,10.2160765,237.47,237.35,1.2255]
[1732094786515,2.1034,237.46,237.39,2.104]
[1732094786716,10.2160765,237.47,237.35,1.2255]
[1732094787110,10.2160765,237.47,237.36,2.1042]
[1732094787315,10.2160765,237.44,237.35,1.2255]
[1732094787514,10.2160765,237.41,237.3,1.187]
[1732094787710,2.38,237.4,237.3,1.187]
[1732094788015,2.104,237.39,237.3,1.187]
[1732094788519,2.1042,237.37,237.3,3.2917]
[1732094788714,2.38,237.4,237.27,1.2148]
[1732094788916,10.2160765,237.38,237.27,1.2148]
[1732094789117,2.1043,237.36,237.29,2.1049]
[1732094789721,12.3201765,237.38,237.3,2.1048]
[1732094790317,2.1042,237.37,237.3,2.1048]
[1732094791212,10.2160765,237.38,237.3,2.1047]
[1732094791411,10.2160765,237.38,237.27,1.2148]
[1732094792224,12.3201765,237.38,237.31,2.1046]
[1732094792621,2.38,237.4,237.27,1.2148]
[1732094793315,12.3198765,237.41,237.27,1.2148]
[1732094793518,2.32,237.4,237.27,1.2148]
[1732094793723,2.1041,237.38,237.31,2.1047]
[1732094793924,2.1041,237.38,237.27,1.2148]
[1732094794522,2.32,237.37,237.27,1.2148]
[1732094794725,2.32,237.37,237.31,2.1047]
[1732094795324,2.32,237.37,237.27,1.2148]
[1732094795725,2.32,237.37,237.28,10.2160765]
[1732094795927,1.2793,237.44,237.38,2.104]
[1732094796224,2.32,237.43,237.31,10.2160765]
[1732094796628,2.32,237.43,237.36,2.1042]
[1732094798235,4.4236,237.43,237.36,2.1042]
[1732094798531,2.32,237.43,237.37,2.1041]
[1732094800832,4.4236,237.43,237.37,2.1041]
[1732094801634,2.32,237.43,237.27,1.2148]
[1732094802035,2.1041,237.38,237.31,2.1047]
[1732094802228,2.32,237.37,237.31,2.1047]
[1732094803230,4.4242,237.37,237.31,2.1047]
[1732094803434,12.5360765,237.37,237.29,2.1048]
[1732094804134,12.3205765,237.34,237.27,2.105]
[1732094804439,12.3205765,237.34,237.23,1.203]
[1732094804440,10.2160765,237.34,237.23,1.203]
[1732094805638,2.1049,237.29,237.23,1.203]
[1732094805838,2.32,237.28,237.23,1.203]
[1732094806440,2.1051,237.27,237.2,2.1056]
[1732094806638,2.32,237.28,237.15,1.1866]
[1732094806932,4.425,237.28,237.15,1.1866]
[1732094807139,2.32,237.28,237.17,10.2160765]
[1732094807538,2.32,237.27,237.2,10.2160765]
[1732094807730,2.32,237.28,237.2,10.2160765]
[1732094808235,2.32,237.28,237.17,10.2160765]
[1732094808436,2.32,237.28,237.22,2.1054]
[1732094809240,2.32,237.28,237.17,10.2160765]
[1732094810942,2.32,237.28,237.22,2.1055]
[1732094813843,2.32,237.28,237.17,10.2160765]
[1732094814448,2.32,237.28,237.23,2.1054]
[1732094817242,2.32,237.28,237.24,2.1053]
[1732094817950,2.32,237.27,237.17,10.2160765]
[1732094818146,2.32,237.27,237.25,2.1052]
[1732094818450,2.32,237.27,237.17,10.2160765]
[1732094818951,2.32,237.27,237.15,1.1866]
[1732094820055,2.32,237.27,237.21,2.1056]
[1732094820242,2.32,237.27,237.15,1.1866]
[1732094820754,2.32,237.27,237.2,6.54772161]
[1732094821151,2.32,237.27,237.22,2.1055]
[1732094821453,2.32,237.27,237.2,6.54772161]
[1732094821753,2.1046,237.32,237.25,2.1052]
[1732094822051,2.24,237.31,237.24,6.54772161]
[1732094822447,2.24,237.31,237.28,2.1049]
[1732094822751,6.54772161,237.29,237.16,5.83992392]
[1732094822952,6.54772161,237.29,237.22,2.1055]
[1732094822953,6.54772161,237.27,237.22,2.1055]
[1732094823156,6.54772161,237.27,237.18,6.54772161]
[1732094824957,6.54772161,237.25,237.19,2.1057]
[1732094825147,2.24,237.24,237.19,2.1057]
[1732094825352,6.54772161,237.23,237.15,7.73432161]
[1732094826154,6.54772161,237.23,237.16,2.106]
[1732094826453,6.54772161,237.23,237.15,1.1866]
[1732094827246,6.54772161,237.23,237.17,2.1059]
[1732094827451,2.24,237.24,237.15,1.1866]
[1732094827651,8.78772161,237.24,237.15,1.1866]
[1732094828052,6.54772161,237.22,237.15,1.1866]
[1732094829355,6.54772161,237.22,237.16,2.106]
[1732094830156,6.54772161,237.22,237.15,1.1866]
[1732094831351,6.54772161,237.22,237.16,2.106]
[1732094833759,6.54772161,237.2,237.15,1.1866]
[1732094834062,6.54772161,237.18,237.14,2.1061]
[1732094834257,6.54772161,237.18,237.12,2.1063]
[1732094834258,2.24,237.17,237.12,2.1063]
[1732094834460,2.24,237.17,237.1,1.2886]
[1732094835260,2.24,237.17,237.13,2.1063]
[1732094835457,2.24,237.17,237.1,1.2886]
[1732094836261,2.24,237.17,237.12,2.1064]
[1732094836763,2.24,237.17,237.07,6.54772161]
[1732094836764,6.54772161,237.16,237.07,6.54772161]
[1732094836955,6.54772161,237.16,237.11,2.1064]
[1732094837360,6.54772161,237.14,237.11,2.1064]
[1732094838160,6.54772161,237.12,237.03,2.4694]
[1732094838363,2.24,237.11,237.04,6.54772161]
[1732094838663,2.13255694,237.21,237.03,2.4694]
[1732094838664,6.54772161,237.15,237.11,2.1064]
[1732094838964,2.24,237.12,237.11,2.1064]
[1732094839468,2.24,237.12,237.05,2.1069]
[1732094839664,2.24,237.12,237.03,2.4694]
[1732094839860,2.24,237.12,237.05,6.54772161]
[1732094840057,2.24,237.12,237.09,2.1066]
[1732094840266,2.24,237.12,237.03,2.4694]
[1732094840465,2.24,237.12,237.03,9.01712161]
[1732094840663,2.24,237.12,237.08,2.1067]
[1732094841365,2.24,237.12,237.04,6.54772161]
[1732094841561,2.24,237.12,237.07,2.1068]
[1732094841868,2.24,237.12,237.04,6.54772161]
[1732094842564,2.24,237.12,237.08,2.1067]
[1732094844463,6.54772161,237.11,237.03,2.4694]
[1732094845063,6.54772161,237.11,237.04,6.54772161]
[1732094845269,6.54772161,237.11,237.08,2.1067]
[1732094846166,2.24,237.12,237.09,2.1066]
[1732094846471,2.24,237.15,237.08,6.54772161]
[1732094847270,6.54772161,237.13,237.03,1.2513]
[1732094847467,6.54772161,237.13,237.08,2.1067]
[1732094847668,2.24,237.15,237.05,6.54772161]
[1732094847867,8.78772161,237.15,237.05,6.54772161]
[1732094848070,2.24,237.15,237.09,6.54772161]
[1732094848568,12.63,237.41,237.14,6.54772161]
[1732094848768,6.54772161,237.27,237.15,1.206]
[1732094849073,6.54772161,237.25,237.16,6.54772161]
[1732094849268,6.54772161,237.25,237.18,2.1058]
[1732094849671,6.54772161,237.23,237.15,1.206]
[1732094849868,2.64,237.26,237.15,1.206]
[1732094849869,6.54772161,237.21,237.15,1.206]
[1732094850071,6.54772161,237.19,237.15,1.206]
[1732094850563,6.54772161,237.19,237.15,3.3121]
[1732094850766,2.64,237.2,237.15,1.206]
[1732094851574,9.18772161,237.2,237.15,1.206]
[1732094852273,9.18772161,237.2,237.16,2.106]
[1732094852967,6.54772161,237.18,237.08,5.84842911]
[1732094853174,2.64,237.2,237.12,6.54772161]
[1732094853377,2.64,237.2,237.14,6.54772161]
[1732094853767,2.64,237.2,237.17,2.1059]
[1732094854170,7.73702161,237.25,237.16,6.54772161]
[1732094854475,2.64,237.24,237.18,6.54772161]
[1732094854674,6.54772161,237.27,237.18,6.54772161]
[1732094854871,6.54772161,237.27,237.19,1.2851]
[1732094855071,2.64,237.28,237.22,6.54772161]
[1732094855569,2.64,237.28,237.25,2.1052]
[1732094855770,2.64,237.28,237.2,7.84922161]
[1732094855973,2.64,237.28,237.24,2.1053]
[1732094856175,2.64,237.28,237.14,23.39887597]
[1732094856371,2.64,237.28,237.19,6.54772161]
[1732094856670,6.54772161,237.27,237.19,6.54772161]
[1732094856874,6.54772161,237.25,237.17,6.54772161]
[1732094857075,6.54772161,237.21,237.13,1.2851]
[1732094857277,9.18772161,237.21,237.16,2.1059]
[1732094857568,6.54772161,237.19,237.13,1.2851]
[1732094857975,2.64,237.21,237.15,2.1061]
[1732094858174,9.18772161,237.21,237.13,1.2851]
[1732094858774,2.64,237.21,237.13,1.2851]
[1732094858969,2.64,237.22,237.13,1.2851]
[1732094859874,2.64,237.22,237.14,5.84971899]
[1732094860073,2.64,237.22,237.13,1.2851]
[1732094860271,2.64,237.22,237.15,2.106]
[1732094860577,2.64,237.24,237.13,11.5191542]
[1732094860871,10.2340542,237.28,237.13,11.5191542]
[1732094860872,10.2340542,237.31,237.13,11.5191542]
[1732094861076,2.64,237.3,237.16,10.2340542]
[1732094861473,2.64,237.3,237.17,1.1879]
[1732094861871,2.64,237.3,237.19,10.2340542]
[1732094862075,2.64,237.3,237.22,2.1055]
[1732094862369,2.64,237.33,237.2,1.304]
[1732094863171,2.64,237.33,237.25,2.1052]
[1732094863475,2.64,237.33,237.2,1.304]
[1732094864277,2.64,237.33,237.22,10.2340542]
[1732094864476,2.64,237.32,237.23,1.2854]
[1732094865071,2.64,237.37,237.25,10.2340542]
[1732094865274,2.64,237.39,237.34,2.1044]
[1732094866081,2.64,237.39,237.33,2.1045]
[1732094866274,2.64,237.39,237.29,1.2949]
[1732094866579,2.64,237.39,237.31,10.2340542]
[1732094866876,2.64,237.39,237.32,1.2182]
[1732094867177,12.3375542,237.45,237.34,10.2340542]
[1732094867178,2.64,237.45,237.34,10.2340542]
[1732094867377,2.64,237.45,237.4,2.1039]
[1732094867680,2.64,237.45,237.34,10.2340542]
[1732094868179,2.64,237.45,237.39,2.104]
[1732094868981,2.64,237.45,237.34,10.2340542]
[1732094869381,30.34,237.48,237.34,10.2340542]
[1732094869576,2.64,237.47,237.37,10.2340542]
[1732094869974,2.64,237.47,237.38,1.2085]
[1732094870381,2.64,237.49,237.44,2.1035]
[1732094870580,2.64,237.49,237.38,1.2085]
[1732094871580,2.1032,237.48,237.39,2.1039]
[1732094871982,10.2340542,237.48,237.34,10.2340542]
[1732094872184,2.1035,237.45,237.36,2.1042]
[1732094872383,2.1035,237.45,237.33,1.2987]
[1732094872384,12.3375542,237.45,237.33,1.2987]
[1732094872787,2.1036,237.44,237.35,2.1043]
[1732094872984,2.64,237.43,237.28,10.2340542]
[1732094873378,10.2340542,237.42,237.28,10.2340542]
[1732094873581,4.7437,237.43,237.33,2.1045]
[1732094873784,4.7437,237.43,237.28,10.2340542]
[1732094874089,2.64,237.43,237.28,10.2340542]
[1732094874580,2.64,237.43,237.35,2.1043]
[1732094874782,2.64,237.43,237.28,10.2340542]
[1732094874984,2.64,237.43,237.39,2.104]
[1732094875386,2.64,237.43,237.31,10.2340542]
[1732094876086,2.64,237.43,237.37,2.1041]
[1732094876287,2.64,237.43,237.31,10.2340542]
[1732094876792,2.64,237.44,237.31,10.2340542]
[1732094877286,2.64,237.44,237.38,2.1041]
[1732094877487,2.64,237.44,237.31,10.2340542]
[1732094877883,2.64,237.44,237.35,2.1043]
[1732094878090,2.64,237.44,237.31,10.2340542]
[1732094878583,2.1036,237.43,237.28,10.2340542]
[1732094878783,2.64,237.44,237.28,10.2340542]
[1732094879183,4.7435,237.44,237.35,2.1043]
[1732094879989,2.1036,237.43,237.35,2.1043]
[1732094880288,2.64,237.44,237.33,2.1044]
[1732094880489,10.2340542,237.42,237.28,10.2340542]
[1732094880887,10.2340542,237.42,237.27,2.52]
[1732094881089,10.2340542,237.42,237.25,2.4455]
[1732094881487,10.2340542,237.38,237.25,2.4455]
[1732094881683,2.52,237.37,237.25,3.6541]
[1732094883390,4.6242,237.37,237.28,2.1049]
[1732094883694,2.52,237.37,237.25,2.4685]
[1732094883993,10.2340542,237.35,237.25,2.4685]
[1732094884793,2.1045,237.33,237.26,2.1051]
[1732094885292,2.1045,237.33,237.25,2.4685]
[1732094885492,10.2340542,237.35,237.25,1.2086]
[1732094886094,10.2340542,237.35,237.18,10.2340542]
[1732094886393,2.1046,237.32,237.25,2.1052]
[1732094886594,2.52,237.31,237.25,2.1052]
[1732094887193,2.52,237.31,237.19,1.2017]
[1732094887598,2.52,237.31,237.21,10.2340542]
[1732094887799,1.2199,237.37,237.24,10.2340542]
[1732094887995,2.52,237.36,237.24,10.2340542]
[1732094888203,2.52,237.37,237.27,10.2340542]
[1732094888697,2.52,237.37,237.25,1.2377]
[1732094889090,2.1044,237.34,237.25,1.2377]
[1732094889290,10.2340542,237.35,237.19,3.7217]
[1732094889494,10.2340542,237.35,237.19,1.2017]
[1732094890100,2.1048,237.31,237.23,2.1054]
[1732094890294,2.1048,237.31,237.19,1.2017]
[1732094890295,2.52,237.3,237.19,1.2017]
[1732094890798,4.6248,237.3,237.19,1.2017]
[1732094891206,10.2340542,237.29,237.19,1.2017]
[1732094891507,2.105,237.27,237.19,1.2017]
[1732094892209,10.2340542,237.29,237.19,1.2017]
[1732094892505,12.3389542,237.29,237.2,2.1057]
[1732094893104,12.3389542,237.29,237.19,1.2017]
[1732094893305,12.3389542,237.29,237.21,2.1056]
[1732094894008,10.2340542,237.29,237.19,1.2017]
[1732094894310,2.52,237.3,237.19,1.2017]
[1732094894604,2.52,237.3,237.26,2.1051]
[1732094895707,4.6248,237.3,237.19,1.2017]
[1732094896003,2.52,237.3,237.19,1.2017]
[1732094896303,2.105,237.28,237.22,2.1055]
[1732094896500,10.2340542,237.29,237.19,1.2017]
[1732094896701,2.52,237.3,237.13,1.2017]
[1732094896702,10.2340542,237.26,237.13,1.2017]
[1732094897207,11.4613542,237.29,237.13,11.4357542]
[1732094897908,2.1051,237.27,237.17,2.1059]
[1732094898110,2.1051,237.27,237.13,11.4357542]
[1732094899212,11.4613542,237.29,237.13,11.4357542]
[1732094899410,13.5662542,237.29,237.13,11.4357542]
[1732094902014,11.4433542,237.36,237.23,2.1053]
[1732094902015,10.2340542,237.32,237.23,2.1053]
[1732094902314,2.52,237.31,237.16,10.2340542]
[1732094902609,2.52,237.31,237.25,2.1052]
[1732094902813,10.2340542,237.35,237.19,10.2340542]
[1732094903114,2.52,237.34,237.19,10.2340542]
[1732094904710,2.52,237.34,237.29,2.1048]
[1732094905313,1.2093,237.36,237.23,1.2217]
[1732094905510,2.52,237.35,237.25,10.2340542]
[1732094905712,2.52,237.36,237.25,10.2340542]
[1732094905915,2.52,237.36,237.31,2.1047]
[1732094906615,2.52,237.36,237.24,1.2604]
[1732094907314,2.52,237.36,237.31,2.1047]
[1732094907705,12.3381542,237.38,237.24,1.2604]
[1732094907706,2.52,237.38,237.24,1.2604]
[1732094907907,2.52,237.38,237.33,2.1045]
[1732094909812,2.52,237.38,237.34,2.1044]
[1732094911423,2.52,237.38,237.33,2.1045]
[1732094912120,2.06479091,237.41,237.24,11.4944542]
[1732094912418,12.6140542,237.4,237.33,2.1045]
[1732094912624,2.38,237.39,237.33,2.1045]
[1732094912827,2.1041,237.38,237.33,2.1045]
[1732094913223,2.38,237.39,237.31,2.1046]
[1732094913422,2.1043,237.35,237.24,1.2604]
[1732094913724,10.2340542,237.37,237.24,1.2604]
[1732094914622,10.2340542,237.34,237.26,2.105]
[1732094914822,10.2340542,237.34,237.23,1.2217]
[1732094914823,2.38,237.33,237.23,1.2217]
[1732094916323,2.1047,237.31,237.25,2.1052]
[1732094916623,2.1047,237.31,237.23,1.2217]
[1732094916823,2.38,237.33,237.28,2.1049]
[1732094917021,2.38,237.33,237.23,1.2217]
[1732094917226,10.2340542,237.31,237.23,1.2217]
[1732094918219,2.1048,237.3,237.24,2.1053]
[1732094919518,2.1048,237.3,237.18,1.2276]
[1732094919519,2.1051,237.27,237.19,2.1057]
[1732094919719,10.2340542,237.28,237.15,25.40457001]
[1732094919720,2.38,237.26,237.15,25.40457001]
[1732094920025,2.38,237.26,237.16,1.2513]
[1732094920425,2.1052,237.25,237.2,2.1056]
[1732094920624,2.1052,237.25,237.16,1.2513]
[1732094921327,2.1053,237.24,237.19,2.1057]
[1732094921621,10.2340542,237.25,237.19,2.1057]
[1732094921824,2.38,237.26,237.16,1.2513]
[1732094922024,2.38,237.27,237.16,1.2513]
[1732094922225,2.38,237.27,237.18,10.2340542]
[1732094922428,2.38,237.27,237.24,2.1053]
[1732094923421,2.38,237.27,237.18,10.2340542]
[1732094923422,2.38,237.27,237.22,2.1054]
[1732094924925,2.38,237.27,237.16,1.2513]
[1732094927435,2.38,237.27,237.21,2.1055]
[1732094928326,2.38,237.27,237.16,1.2513]
[1732094928532,4.4851,237.27,237.19,2.1057]
[1732094928832,2.38,237.27,237.19,2.1057]
[1732094929034,2.1052,237.25,237.19,2.1057]
[1732094929430,2.38,237.27,237.17,2.1059]
[1732094929832,10.2340542,237.25,237.16,1.2513]
[1732094930229,10.2340542,237.22,237.16,1.2513]
[1732094930435,2.38,237.21,237.16,1.2513]
[1732094932436,2.38,237.21,237.07,23.40980292]
[1732094932437,10.2340542,237.19,237.07,23.40980292]
[1732094932640,10.2340542,237.19,237.05,65.06894532]
[1732094932641,10.2340542,237.19,237.08,1.2029]
[1732094934037,2.106,237.16,237.03,5.85245073]
[1732094934232,2.38,237.15,237.07,1.2029]
[1732094936938,10.2340542,237.1,237.06,2.1069]
[1732094937135,2.38,237.09,236.99,1.216]
[1732094937935,4.4867,237.09,237.0,2.1074]
[1732094938133,2.38,237.09,236.99,1.216]
[1732094938536,2.38,237.09,236.99,11.4500542]
[1732094939141,2.38,237.09,237.06,2.1069]
[1732094939540,10.2340542,237.16,236.99,11.4500542]
[1732094939840,2.4,237.15,236.99,11.4500542]
[1732094940036,2.4,237.14,236.99,11.4500542]
[1732094940234,2.4,237.14,237.02,10.2340542]
[1732094941540,2.4,237.14,237.1,2.1065]
[1732094941933,10.2340542,237.19,237.05,10.2340542]
[1732094942132,1.2724,237.25,237.05,10.2340542]
[1732094942133,2.4,237.18,237.05,10.2340542]
[1732094942939,2.4,237.18,237.08,2.1066]
[1732094943239,2.4,237.18,237.09,1.203]
[1732094943940,2.1057,237.2,237.09,1.203]
[1732094943941,2.4555,237.25,237.09,1.203]
[1732094944239,12.6340542,237.24,237.09,1.203]
[1732094944436,2.1054,237.23,237.1,1.2471]
[1732094945542,12.6340542,237.24,237.1,1.2471]
[1732094945745,2.4,237.23,237.11,10.2340542]
[1732094946438,2.4,237.23,237.18,2.1058]
[1732094946843,2.4,237.23,237.11,10.2340542]
[1732094947043,2.4,237.23,237.19,2.1057]
[1732094948648,2.4,237.23,237.2,2.1056]
[1732094951444,2.4,237.23,237.18,2.1058]
[1732094952647,2.4,237.23,237.11,10.2340542]
[1732094952849,4.5054,237.23,237.1,1.2471]
[1732094953648,2.4,237.23,237.1,1.2471]
[1732094954348,4.5054,237.23,237.1,1.2471]
[1732094954950,2.4,237.23,237.1,1.2471]
[1732094955351,10.2340542,237.21,237.1,1.2471]
[1732094955552,10.2340542,237.21,237.14,2.1062]
[1732094956256,2.4,237.23,237.11,10.2340542]
[1732094956754,2.4,237.23,237.09,1.203]
[1732094957053,2.4,237.23,237.11,1.2233]
[1732094957653,2.4,237.23,237.14,2.1061]
[1732094957850,2.4,237.22,237.11,11.4573542]
[1732094958047,2.4,237.21,237.11,11.4573542]
[1732094958252,2.4,237.21,237.11,17.30980493]
[1732094958652,2.4,237.21,237.11,11.4573542]
[1732094958856,2.4,237.21,237.12,4.5582957]
[1732094959357,10.2340542,237.33,237.17,10.2340542]
[1732094959559,2.4,237.32,237.18,2.6096]
[1732094959753,2.4,237.31,237.18,2.6096]
[1732094960855,2.4,237.31,237.2,10.2340542]
[1732094961259,2.4,237.31,237.26,2.1051]
[1732094962456,2.4,237.31,237.24,2.1052]
[1732094963052,2.4,237.31,237.25,2.1052]
[1732094964360,1.2507,237.34,237.25,2.1052]
[1732094964556,2.4,237.33,237.23,10.2340542]
[1732094965860,1.2507,237.34,237.23,10.2340542]
[1732094966064,2.4,237.33,237.23,10.2340542]
[1732094966656,1.2507,237.34,237.23,10.2340542]
[1732094966858,2.4,237.33,237.23,10.2340542]
[1732094967263,2.4,237.33,237.27,2.105]
[1732094967768,2.4,237.33,237.21,1.3062]
[1732094968266,1.2507,237.34,237.23,10.2340542]
[1732094968460,1.2507,237.34,237.27,2.105]
[1732094968461,2.28,237.32,237.27,2.105]
[1732094968662,2.28,237.32,237.23,10.2340542]
[1732094968857,1.2507,237.34,237.23,10.2340542]
[1732094969060,2.28,237.33,237.23,10.2340542]
[1732094969465,2.28,237.33,237.26,2.1051]
[1732094969665,2.28,237.33,237.23,10.2340542]
[1732094972170,2.28,237.33,237.21,1.3062]
[1732094972770,4.3845,237.33,237.26,2.1051]
[1732094974373,2.28,237.33,237.25,2.1052]
[1732094975569,2.28,237.33,237.21,1.3062]
[1732094975570,12.5140542,237.33,237.23,2.1053]
[1732094975873,12.5140542,237.33,237.21,1.3062]
[1732094976573,2.1047,237.31,237.24,2.1053]
[1732094977170,2.1051,237.26,237.2,2.1056]
[1732094977370,2.28,237.25,237.2,2.1056]
[1732094977569,2.28,237.24,237.18,1.3011]
[1732094977772,2.28,237.24,237.19,2.1057]
[1732094979366,2.28,237.24,237.07,19.83735219]
[1732094979367,10.2340542,237.21,237.07,5.85245073]
[1732094979674,10.2340542,237.21,237.08,1.2328]
[1732094980674,2.1057,237.2,237.13,2.1063]
[1732094981879,10.2340542,237.18,237.13,2.1063]
[1732094982079,2.28,237.17,237.13,2.1063]
[1732094985379,2.28,237.17,237.15,2.1061]
[1732094986785,2.28,237.17,237.08,1.2328]
[1732094986986,2.28,237.17,237.14,2.1062]
[1732094989986,2.28,237.19,237.14,2.1062]
[1732094990485,2.28,237.19,237.13,2.1063]
[1732094990691,2.28,237.19,237.08,1.2328]
[1732094991188,2.28,237.19,237.12,2.1064]
[1732094992386,12.5140542,237.19,237.11,2.1065]
[1732094992689,2.28,237.19,237.08,1.2328]
[1732094992891,2.28,237.18,237.08,1.2328]
[1732094993090,2.28,237.18,237.14,2.1061]